Cogmind - Beta 10.2 @@@ ROGUE MODE // 2021.03.22 @ 07:10:14 Player: BOTHUNTER Result: Destroyed by G-34 Mercenary with Small Laser Performance ------------- Evolutions (0) 0 Regions Visited (1) 200 Robots Destroyed (12) 60 Value Destroyed (138) 138 Prototype IDs (0) 0 Alien Tech Used (0) 0 Bonus (0) 0 TOTAL SCORE: 398 Bonus ------- None Cogmind --------- Core Integrity 0/250 Matter 300/300 Energy 100/100 System Corruption 0% Temperature Cool (6) Movement Core (50) Location -10/Materials Parts ------- > --- POWER (1) -------- (None) > --- PROPULSION (2) --- (None) > --- UTILITY (2) ------ Visual Processing Unit > --- WEAPON (2) ------- (None) > --- INVENTORY (4) ---- Small Storage Unit Grenade Launcher Peak State ------------ > --- POWER ------------ (None) > --- PROPULSION ------- (None) > --- UTILITY ---------- Visual Processing Unit > --- WEAPON ----------- EM Pulse Gun Medium Laser > --- INVENTORY -------- Light Ion Engine Small Storage Unit Grenade Launcher Mining Laser [Rating: 4] Favorites ----------- Power Light Ion Engine Engine Light Ion Engine Propulsion None Utility Visual Processing Unit Processor Visual Processing Unit Weapon Medium Laser Energy Gun Medium Laser Ballistic Gun Assault Rifle Special Weapon Mining Laser Build | -11 -10 ------- Run | Scr Mat Slots Evolved . | . . Power . | . . Propulsion . | . . Utility . | . . Weapon . | . . Parts Attached 8 | 4 4 Power 1 | . 1 Engine 1 | . 1 Core . | . . Reactor . | . . Propulsion . | . . Treads . | . . Leg . | . . Wheel . | . . Hover . | . . Flight . | . . Utility 1 | . 1 Device . | . . Storage . | . . Processor 1 | . 1 Hackware . | . . Protection . | . . Artifact . | . . Weapon 6 | 4 2 Energy Gun 3 | 2 1 Energy Cannon . | . . Ballistic Gun 2 | 2 . Ballistic Cannon . | . . Launcher . | . . Special Weapon 1 | . 1 Impact Weapon . | . . Slashing Weapon . | . . Piercing Weapon . | . . Special Melee Weapon . | . . Unidentified Prototypes . | . . Parts Lost 5 | . 5 Power 1 | . 1 Propulsion . | . . Utility . | . . Weapon 4 | . 4 Highest Loss Streak 4 | . 4 Average Slot Usage (%) 28 | . 28 Engine 1 | . 1 Processor 5 | . 5 Energy Gun 21 | . 21 Naked Turns . | . . Heaviest Build 5 | 4 5 Greatest Support 3 | 3 3 Greatest Overweight (x) 1 | 1 1 Average Overweight (x) . | . . Largest Inventory Capacity 4 | 4 4 Average Capacity 4 | 4 4 Most Carried 4 | 4 4 Average Carried 2 | 1 3 Final Capacity 4 | 4 4 Final Carried 4 | 4 2 Class Distribution -------------------- 100% | Mutant Dominant Class ---------------- Mutant | -10/Materials Resources | -11 -10 ----------- Run | Scr Mat Matter Collected 240 | 240 . Remotely . | . . Salvage Created 330 | 238 92 Parts 27 | 26 1 Haulers Intercepted . | . . Recyclers Shooed 1 | 1 . Parts Field Recycled . | . . Retrieved Matter . | . . Parts Self-Destructed . | . . Prevented . | . . Kills | -11 -10 ------- Run | Scr Mat Combat Hostiles Destroyed 2 | . 2 Guns 2 | . 2 Classes Destroyed 4 | 3 1 Worker 2 | 2 . Tunneler 7 | 7 . Recycler 1 | 1 . Grunt 2 | . 2 Best Kill Streak 4 | 4 2 Combat Bots Only 2 | . 2 Max Kills in Single Turn 1 | 1 1 Gunslinging . | . . Exploded . | . . Melee . | . . Uniques/NPCs Destroyed . | . . Combat | -11 -10 -------- Run | Scr Mat Damage Taken 481 | . 481 Core 255 | . 255 Absorbed by Shields . | . . Core Remaining (%) 100 | 100 . Volleys Fired 66 | 43 23 Largest 2 | 2 2 Hottest 100 | 100 100 Shots Fired 105 | 69 36 Gun 105 | 69 36 Cannon . | . . Launcher . | . . Special . | . . Kinetic . | . . Thermal 93 | 69 24 Explosive . | . . Electromagnetic 12 | . 12 Robot Hit Streak 5 | 5 4 Robot Miss Streak 4 | 3 4 Penetration Max . | . . Secondary Targets . | . . Shots Hit Robots 49 | 30 19 Core Hits 20 | 10 10 Critical Hits . | . . Critical Kills . | . . Critical Parts Destroyed . | . . Melee Attacks . | . . Impact . | . . Slashing . | . . Piercing . | . . Sneak Attacks . | . . Combat Hostiles . | . . Follow-up Attacks . | . . Damage Inflicted 709 | 408 301 Guns 678 | 408 270 Cannons . | . . Explosions . | . . Melee . | . . Ramming 31 | . 31 Kinetic . | . . Thermal 585 | 408 177 Explosive . | . . Electromagnetic 93 | . 93 Impact . | . . Slashing . | . . Piercing . | . . Highest Corruption . | . . Average Corruption . | . . Corruption Purged . | . . Overload Shots . | . . Overflow Damage . | . . Projectiles . | . . Explosions . | . . Melee . | . . Knockbacks 1 | . 1 Impact 1 | . 1 Kinetic . | . . Secondary . | . . Self-Inflicted Damage 15 | . 15 Shots . | . . Rammed 12 | . 12 Targets Rammed 12 | . 12 Kicked . | . . Crushed . | . . Highest Temperature 383 | 383 253 Average Temperature 135 | 157 103 Received Heat Transfer 270 | . 270 Effects 2 | 2 . Interference 2 | 2 . Siege Activations . | . . Robots Corrupted . | . . Combat Hostiles . | . . Parts Fried . | . . Impact Corruptions . | . . Robots Melted 1 | 1 . Combat Hostiles . | . . Parts Melted 5 | 2 3 Heat Transferred 1739 | 1221 518 Parts Sabotaged . | . . Parts Stolen . | . . Parts Stripped . | . . Power Chain Reactions . | . . Missiles Intercepted . | . . Alert | -11 -10 ------- Run | Scr Mat Peak Influence 81 | 50 81 Initial 32 | . 32 Average 33 | 17 55 Maximum Alert Level . | . . Low Security (%) 100 | 100 100 Level 1 . | . . Level 2 . | . . Level 3 . | . . Level 4 . | . . Level 5 . | . . High Security . | . . Max Security . | . . Squads Dispatched 2 | . 2 Investigation 2 | . 2 Extermination . | . . Reinforcement . | . . Assault . | . . Garrison . | . . Intercept . | . . Construction Impeded . | . . Haulers Reinforced . | . . Stealth | -11 -10 --------- Run | Scr Mat Distress Signals . | . . Communications Jammed . | . . Distress Signals . | . . Times Spotted 8 | . 8 Peak Tracking Total 4 | . 4 Tactical Retreats 1 | . 1 Traps | -11 -10 ------- Run | Scr Mat Traps Triggered . | . . Indirectly . | . . Trap Hack Attempts . | . . Triggered . | . . Disarmed . | . . Reprogrammed . | . . Reused . | . . Traps Extracted . | . . Installed . | . . Triggered . | . . Machines | -11 -10 ---------- Run | Scr Mat Machines Disabled . | . . Max in Single Turn . | . . Machines Sabotaged . | . . Garrisons Compromised . | . . Overloaded Fab Kills . | . . Fab Network Shutdowns . | . . Hacking | -11 -10 --------- Run | Scr Mat Machines Accessed 2 | . 2 Terminals 2 | . 2 Fabricators . | . . Repair Stations . | . . Recycling Units . | . . Scanalyzers . | . . Garrison Access . | . . Total Hacks 8 | . 8 Successful 5 | . 5 Failed 3 | . 3 Catastrophic . | . . Database Lockouts . | . . Manual 8 | . 8 Terminals 8 | . 8 Fabricators . | . . Repair Stations . | . . Recycling Units . | . . Scanalyzers . | . . Garrison Access . | . . Terminal Hacks . | . . Fabricator Hacks . | . . Repair Station Hacks . | . . Recycling Unit Hacks . | . . Scanalyzer . | . . Garrison Access Hacks . | . . Unauthorized Hacks 5 | . 5 Terminals 5 | . 5 Track 1 | . 1 Botnet 2 | . 2 Operators 1 | . 1 Search 1 | . 1 Fabricators . | . . Repair Stations . | . . Recycling Units . | . . Scanalyzers . | . . Garrison Access . | . . Data Cores Recovered . | . . Used . | . . Hacking Detections 1 | . 1 Full Trace Events 1 | . 1 Feedback Events . | . . Feedback Blocked . | . . Robot Schematics Acquired . | . . Robots Built . | . . Matter . | . . Time . | . . Total Robot Build Rating . | . . Part Schematics Acquired . | . . Parts Built . | . . Matter . | . . Time . | . . Total Part Build Rating . | . . Parts Repaired . | . . Time . | . . Parts Recycled . | . . Recycled Matter . | . . Retrieved Matter . | . . Retrieved Components . | . . Parts Scanalyzed . | . . Part Schematics Acquired . | . . Parts Damaged . | . . Bothacking | -11 -10 ------------ Run | Scr Mat Used RIF Installer . | . . Robots Hacked . | . . Non-combat . | . . Combat . | . . Robot Hacks Applied . | . . Relay Couplers Released . | . . Robots Rewired . | . . Allies Hacked . | . . Hacks Repelled . | . . Allies | -11 -10 -------- Run | Scr Mat Total Allies . | . . Largest Group . | . . Highest-Rated Group . | . . Highest-Rated Ally . | . . Total Orders . | . . Ally Attacks . | . . Total Damage . | . . Kills . | . . Allies Corrupted . | . . Allies Melted . | . . Intel | -11 -10 ------- Run | Scr Mat Robot Analysis Total . | . . Derelict Logs Recovered . | . . Drone Launches . | . . Drone Recoveries . | . . Exploration | -11 -10 ------------- Run | Scr Mat Turns Passed 410 | 238 172 Spaces Moved 179 | 97 82 Core 179 | 97 82 Treads . | . . Legs . | . . Wheels . | . . Hover . | . . Flight . | . . Fastest Speed 50 | 50 50 Average Speed 88 | 93 83 Slowest Speed 100 | 100 100 Overloaded Moves . | . . Propulsion Burnouts . | . . Robots Hopped . | . . Cave-ins Triggered . | . . Exploration Rate (%) 14 | 6 23 Regions Visited 1 Branch Regions . Pre-discovered Areas . | . . Known Exits Taken . | . . Unknown Exits Taken 1 | 1 . Scrap Searched . | . . Spaces Dug . | . . Terrain Destroyed . | . . Melee . | . . Projectile . | . . AOE . | . . Terrain Rammed . | . . Walls Destroyed . | . . Machines Disabled . | . . Actions | -11 -10 --------- Run | Scr Mat Total 323 | 174 149 Wait 51 | 25 26 Move 178 | 96 82 Hop . | . . Pick Up 5 | 4 1 Fast Attach 6 | 4 2 Attach 2 | . 2 Detach . | . . Swap . | . . Drop 3 | 2 1 Fire 66 | 43 23 Melee . | . . Ram 12 | . 12 Kick . | . . Crush . | . . Escape Stasis . | . . Rewire . | . . Trap . | . . Miscellaneous . | . . Route ------- -11/Scrapyard -10/Materials History --------- Turn | Location | Event 5 | -11/Scrapyard | Discovered new exit (range 16) 239 | -11/Scrapyard | Entered Materials 303 | -10/Materials | Build established: Mutant 388 | -10/Materials | Core integrity fell below 50% 406 | -10/Materials | Core integrity fell below 20% 411 | -10/Materials | Destroyed by G-34 Mercenary with Small Laser Last Messages --------------- 00323_ G-47 Trooper destroyed. 00346_ Acquired Visual Processing Unit. 00346_ K-01 Serf collects debris. 00350_ Acquired EM Pulse Gun. 00363_ K-01 Serf collects debris. 00370_ G-34 Mercenary IFF system glitched. 00371_ K-01 Serf collects debris. 00372_ Med. Laser destroyed. 00376_ G-34 Mercenary IFF system glitched. 00376_ K-01 Serf collects debris. 00381_ Destroyed Sml. Laser. 00392_ EM Pulse Gun destroyed. 00396_ Mining Laser destroyed. 00399_ Slammed into G-34 Mercenary. 00401_ Lgt. Ion Engine destroyed. 00402_ Slammed into G-34 Mercenary. 00402_ Visual Processing Unit permanently disabled. 00402_ Destabilizing: Short circuit. 00403_ Slammed into G-34 Mercenary. 00411_ G-34 Mercenary knocked back. Map ----- +----------------------------------------------------+ | ???????????????????????????????????? | | ???????????????????????????????????? | | ???????????????????????????????????? | | ???????????????????????????????????? | | ???????????????????????????????????? | | ??????????????????????? ? ????????? | | ?????????????????????? ??????? | | ?????????????????????? ==???? | | ???????????? ??????? =????? | | ????????????? ??"""? ?????? | | ?????????????? ??????? | | ????????????o? ] ##?????? | | ??????????????? """"" ##### ? | | ??????????????? """"" ?? | | ???????????????? """"" ?? | | ????????????????? ???? | | ????????????????? #?????? | | ?????????????????? #?????? | | ??????????######### #?????? | | ??????????# !!! # #?????? | | ??????????# !!! / #?????? | | ??????????# !!! # ######? | | ??????????######### * ## | | ??#######?????????# =%= | | ??# ########### ! | | ??# t g@%%%gggk """ | | ??# T #############+## """ ?? | | ??# #???????# # """???? | | ??# #???????# """"%#? ??? | | ??## ########?# """" #? ? | | ???# # #?# """" #?? """ ? | | ???# # """#?# #??? """ ? | | ???# + """#?# """"%#??? ""??? ? | | ???# # """#?# """"=#???? ????? | | ???# # #?# """" #????? ????? | | ???# # #?# #????? ???? | | ???# ##+#####?# """" #??????#????? | | ???# # #?# """" #???????????? | | ???# # | #?# """" #???????????? | | ???# + """ "#?# k #???????????? | | ???# # """ T#?########???????????? | | ???# # """ "#????????????????????? | | ???# # #????????????????????? | | ???############????????????????????? | | ???????????????????????????????????? | | ???????????????????????????????????? | | ???????????????????????????????????? | | ???????????????????????????????????? | | ???????????????????????????????????? | | ???????????????????????????????????? | +----------------------------------------------------+ Best States ------------- Heat Dissipation 25 Energy Generation 10 Energy Capacity 125 Matter Stores 300 Matter Capacity 300 Sight Range 18 Terrain Scan Density 10 Evasion (%) 50 Item Schematics ----------------- None Robot Schematics ------------------ None Fabricated ------------ Nothing Alien Tech Used ----------------- None Achievements -------------- None Challenges ------------ None Game ------ Seed CoreChipScanner Manual? 0 Play Time 00:07:55 Cumulative 139.9 hours Start 2021.03.22 @ 07:05:20 End 2021.03.22 @ 07:10:14 Sessions 1 Manual Loads 0 Difficulty Rogue Special Mode None Game No. 205 Rogue 181 Adventurer 22 Explorer 2 Win Type - Total 1 Types 1/0/0/0/0/0/0/0/0 Lore% 52 Gallery% 58 Achievement% 45 Wizard Run 0 Options --------- ASCII 0 Keyboard 0 Movement Numpad Keybinds 0 Fullscreen 1 Font 14/SmallcapsGlow Map View 84x54 Tactical HUD 1 Map Filters NONE Filters NONE Steam 1 RUN: bbef15e4-26ed-46e1-8c12-3aab0a835c73